bitfinex-derivatives/quotes_SOLF0:USTF0_20260305
["timestamp","ask_amount","ask_price","bid_price","bid_amount"]
[1772671022463,9.873,91.138,91.072,4.92773569]
[1772671023469,9.873,91.138,91.08,9.879]
[1772671023667,2.23381997,91.133,91.055,4.92773569]
[1772671024267,2.23381997,91.133,91.066,4.92773569]
[1772671024763,2.34348389,91.12,91.066,4.92773569]
[1772671024968,2.34348389,91.12,91.05,4.92773569]
[1772671024969,2.34348389,91.119,91.05,4.92773569]
[1772671025368,9.876,91.108,91.05,4.92773569]
[1772671026069,9.876,91.108,91.052,4.92773569]
[1772671026770,9.876,91.108,91.054,4.92773569]
[1772671026969,9.875,91.117,91.054,4.92773569]
[1772671027164,2.14030961,91.139,91.054,4.92773569]
[1772671027366,2.14030961,91.139,91.064,4.92773569]
[1772671027762,2.14491395,91.119,91.041,9.884]
[1772671028068,179.0,91.179,90.983,195.5]
[1772671028069,2.14491395,91.136,91.051,4.92773569]
[1772671028268,9.875,91.119,91.051,4.92773569]
[1772671028570,2.11424971,91.118,91.054,4.92773569]
[1772671029161,2.11424971,91.118,91.066,9.881]
[1772671029770,2.11424971,91.118,91.066,14.80873569]
[1772671030074,2.11424971,91.118,91.067,4.92773569]
[1772671030573,2.14148496,91.139,91.067,4.92773569]
[1772671031270,2.14148496,91.139,91.069,4.92773569]
[1772671031674,2.15016352,91.119,91.031,4.92773569]
[1772671031875,9.877,91.098,91.041,4.92773569]
[1772671032270,2.15016352,91.119,91.041,4.92773569]
[1772671032775,9.878,91.098,91.044,4.92773569]
[1772671033868,2.16570754,91.124,91.044,4.92773569]
[1772671034270,9.878,91.091,91.044,4.92773569]
[1772671035070,2.1569609,91.101,91.044,4.92773569]
[1772671035573,2.16522957,91.149,91.071,4.92773569]
[1772671037480,2.1541519,91.133,91.072,4.92773569]
[1772671038382,9.875,91.123,91.072,4.92773569]
[1772671039375,2.25236259,91.115,91.038,5.23835352]
[1772671039572,2.25236259,91.115,91.04,7.44045381]
[1772671039772,2.25236259,91.115,91.041,5.23835352]
[1772671039977,9.876,91.109,91.058,9.882]
[1772671040182,9.876,91.109,91.058,15.12035352]
[1772671040584,9.876,91.109,91.058,5.23835352]
[1772671041582,2.25236259,91.115,91.058,5.23835352]
[1772671042279,2.25236259,91.115,91.062,5.23835352]
[1772671043076,12.12836259,91.115,91.063,9.881]
[1772671044583,4.09915049,91.174,91.07,7.44045381]
[1772671044787,2.18905663,91.173,91.094,5.23835352]
[1772671044987,2.18905663,91.139,91.051,5.23835352]
[1772671045184,9.876,91.113,91.051,5.23835352]
[1772671045382,2.18905663,91.12,91.053,15.12035352]
[1772671045579,2.18905663,91.12,91.053,5.23835352]
[1772671045891,7.44045381,91.14,91.045,9.883]
[1772671045892,7.44045381,91.1,91.045,9.883]
[1772671046088,2.19275932,91.099,91.031,5.23835352]
[1772671046389,2.19275932,91.08,91.031,5.23835352]
[1772671046984,9.88,91.079,91.031,5.23835352]
[1772671050686,9.88,91.079,90.99,7.44045381]
[1772671050687,2.21562975,91.06,91.002,5.10617413]
[1772671050885,2.21562975,91.06,90.925,153.949]
[1772671050886,2.21562975,91.059,90.986,5.10617413]
[1772671051089,19.752,91.112,90.986,5.10617413]
[1772671051090,2.21562975,91.039,90.986,5.10617413]
[1772671051390,9.884,91.037,90.986,5.10617413]
[1772671051588,2.2191459,91.036,90.986,5.10617413]
[1772671051789,2.2191459,91.036,90.972,9.891]
[1772671052483,2.21998328,91.028,90.934,5.10617413]
[1772671052885,9.885,91.025,90.961,5.10617413]
[1772671053081,2.2233931,91.024,90.961,5.10617413]
[1772671053480,2.2233931,91.024,90.964,5.10617413]
[1772671054490,9.887,91.012,90.964,5.10617413]
[1772671055379,9.886,91.022,90.964,5.10617413]
[1772671060896,9.887,91.013,90.964,5.10617413]
[1772671062092,2.21922041,91.022,90.964,5.10617413]
[1772671063494,9.886,91.02,90.966,5.10617413]
[1772671063796,12.11073141,91.02,90.966,5.10617413]
[1772671064391,2.22431742,91.005,90.921,5.10617413]
[1772671065392,2.22704328,90.999,90.901,5.10617413]
[1772671065899,7.44045381,91.0,90.923,5.10617413]
[1772671065900,9.89,90.979,90.923,5.10617413]
[1772671066599,9.89,90.988,90.928,5.10617413]
[1772671067196,9.889,90.997,90.933,5.10617413]
[1772671067997,2.31019968,91.019,90.952,5.10617413]
[1772671068497,9.887,91.014,90.963,4.89160299]
[1772671069195,2.31019968,91.019,90.966,4.89160299]
[1772671069399,9.886,91.023,90.966,4.89160299]
[1772671070604,9.886,91.023,90.969,4.89160299]
[1772671071400,9.886,91.023,90.972,4.89160299]
[1772671073198,9.886,91.023,90.975,4.89160299]
[1772671073403,9.885,91.034,90.975,4.89160299]
[1772671074400,9.886,91.024,90.975,14.78260299]
[1772671074599,2.3842886,91.024,90.975,4.89160299]
[1772671075996,9.886,91.017,90.975,4.89160299]
[1772671076199,2.3842886,91.024,90.931,4.89160299]
[1772671076510,2.38919701,91.009,90.931,4.89160299]
[1772671076896,9.889,90.992,90.94,9.895]
[1772671078594,7.44904856,91.01,90.933,4.89160299]
[1772671078595,2.38095708,90.991,90.933,4.89160299]
[1772671078800,2.38095708,90.991,90.911,4.89160299]
[1772671079209,9.891,90.973,90.923,14.78760299]
[1772671080110,9.89,90.981,90.929,4.89160299]
[1772671080409,2.38095708,90.991,90.929,4.89160299]
[1772671080602,2.38313814,91.009,90.929,4.89160299]
[1772671081109,9.889,90.994,90.941,4.89160299]
[1772671081906,9.889,90.994,90.945,14.78560299]
[1772671083900,9.889,90.994,90.951,9.893]
[1772671084111,2.38313814,91.009,90.951,4.89160299]
[1772671085412,9.889,90.991,90.951,4.89160299]
[1772671085614,2.38313814,91.009,90.951,4.89160299]
[1772671086406,2.49958731,91.005,90.954,9.893]
[1772671087212,2.49958731,91.005,90.955,4.89160299]
[1772671089003,2.49958731,91.005,90.916,19.795]
[1772671089004,2.50651944,91.029,90.967,4.89160299]
[1772671089605,9.886,91.019,90.967,4.89160299]
[1772671089904,2.50651944,91.029,90.967,4.89160299]
[1772671090104,9.887,91.013,90.969,14.78260299]
[1772671090312,9.887,91.013,90.97,4.89160299]
[1772671091014,9.886,91.021,90.973,4.89160299]
[1772671091711,9.886,91.021,90.974,9.891]
[1772671094412,9.886,91.021,90.974,14.78260299]
[1772671094618,3.47644845,91.02,90.976,9.891]
[1772671095018,3.47644845,91.02,90.976,14.78260299]
[1772671095216,9.886,91.019,90.976,14.78260299]
[1772671096319,9.886,91.019,90.976,4.89160299]
[1772671097215,9.887,91.013,90.976,4.89160299]
[1772671097813,5.98245493,91.02,90.976,4.89160299]
[1772671097814,15.86845493,91.02,90.976,4.89160299]
[1772671098020,12.39200648,91.02,90.976,4.89160299]
[1772671099121,12.39200648,91.02,90.977,14.91746782]
[1772671105728,9.887,91.014,90.977,5.02646782]
[1772671107135,2.52458502,91.036,90.982,4.98664447]
[1772671107935,2.52566507,91.065,90.982,4.98664447]
[1772671108133,2.52566507,91.063,90.982,4.98664447]
[1772671108634,2.52566507,91.063,90.958,19.786]
[1772671108635,2.5117048,91.043,91.0,4.98664447]
[1772671110233,20.25535175,91.129,90.97,7.44896151]
[1772671110234,2.5112644,91.089,91.003,4.98664447]
[1772671110434,2.5112644,91.089,91.011,4.98664447]
[1772671110836,9.879,91.082,91.037,9.884]
[1772671111738,9.879,91.082,91.037,14.87064447]
[1772671112039,9.879,91.082,91.038,4.98664447]
[1772671113139,10.12757852,91.138,90.97,7.44896151]
[1772671113140,2.48272253,91.137,91.06,4.98664447]
[1772671114438,9.875,91.118,91.065,4.98664447]
[1772671114634,2.30290316,91.117,91.065,4.98664447]
[1772671115044,2.30290316,91.149,91.065,4.98664447]
[1772671115640,2.30402063,91.122,91.049,4.98664447]
[1772671116232,2.40104436,91.113,91.052,4.98664447]
[1772671116743,9.875,91.123,91.068,4.98664447]
[1772671117840,12.27819152,91.123,91.068,4.98664447]
[1772671118239,7.44896151,91.13,91.068,4.98664447]
[1772671118240,2.40319152,91.116,91.068,4.98664447]
[1772671118942,9.875,91.121,91.068,4.98664447]
[1772671119437,12.29385464,91.121,91.068,4.98664447]
[1772671120533,3.46873745,91.12,91.07,8.45538192]
[1772671120839,3.46873745,91.12,91.071,4.98664447]
[1772671121234,2.42378433,91.116,91.071,4.98664447]
[1772671122237,2.42464435,91.102,91.056,4.98664447]
[1772671122439,2.42464435,91.079,90.978,4.98664447]
[1772671122633,2.42464435,91.079,90.939,153.926]
[1772671122634,3.46873745,91.06,91.011,4.98664447]
[1772671123033,3.46873745,91.05,91.011,4.98664447]
[1772671123436,2.42559498,91.048,90.992,4.98664447]
[1772671123637,3.46873745,91.04,90.992,4.98664447]
[1772671124547,9.883,91.045,90.992,4.98664447]
[1772671125746,9.883,91.045,90.952,19.787]
[1772671125747,9.882,91.056,90.995,4.98664447]
[1772671125945,2.42560474,91.089,90.995,4.98664447]
[1772671127356,9.881,91.066,91.008,9.887]
[1772671127654,9.881,91.066,91.009,4.98664447]
[1772671128952,9.881,91.066,91.018,15.0867136]
[1772671129252,9.881,91.066,91.018,5.2007136]
[1772671133049,9.881,91.066,91.02,9.886]
[1772671136455,2.53269333,91.056,90.961,5.2007136]
[1772671137051,9.885,91.029,90.987,5.2007136]
[1772671137959,9.884,91.037,90.989,5.2007136]
[1772671138159,2.5283605,91.042,90.989,5.2007136]
[1772671138662,9.884,91.038,90.989,5.2007136]
[1772671138864,2.5283605,91.042,90.989,5.2007136]
[1772671140162,2.53987814,91.059,91.0,5.2007136]
[1772671141059,2.52024077,91.075,91.0,5.2007136]
[1772671141363,9.882,91.053,91.003,9.888]
[1772671141560,9.882,91.053,91.004,5.2007136]
[1772671142461,9.884,91.042,90.98,7.44295595]
[1772671142662,2.5153754,91.041,90.961,5.2007136]
[1772671142869,19.763,91.066,90.961,5.2007136]
[1772671142870,2.51626549,91.029,90.961,5.2007136]
[1772671143459,7.44295595,91.03,90.961,5.2007136]
[1772671143460,2.51629849,91.014,90.961,5.2007136]
[1772671144260,9.888,90.999,90.961,5.2007136]
[1772671145270,9.887,91.007,90.961,5.2007136]
[1772671145666,2.51629849,91.014,90.962,9.892]
[1772671145872,9.887,91.012,90.962,9.892]
[1772671146567,9.888,91.005,90.961,5.2007136]
[1772671146763,2.51629849,91.014,90.961,5.2007136]
[1772671146968,19.767,91.046,90.961,5.2007136]
[1772671146969,2.48296209,91.046,90.961,5.2007136]
[1772671148071,9.885,91.031,90.979,5.2007136]
[1772671148972,9.884,91.039,90.992,5.2007136]
[1772671149766,2.48296209,91.046,90.96,7.44295595]
[1772671149767,9.883,91.047,90.995,5.2007136]
[1772671149971,2.4782879,91.062,90.995,5.2007136]
[1772671150971,2.4782879,91.062,91.012,9.887]
[1772671151178,2.4782879,91.062,91.012,15.0877136]
[1772671151373,2.4782879,91.062,91.012,5.2007136]
[1772671151577,9.882,91.059,91.012,5.2007136]
[1772671153581,9.883,91.049,91.012,5.2007136]
[1772671154385,9.883,91.044,90.997,9.888]
[1772671154784,9.883,91.044,91.002,9.888]
[1772671157284,2.64712391,91.048,91.004,9.888]
[1772671158084,2.64712391,91.048,91.003,5.2007136]
[1772671159485,9.884,91.041,91.003,5.2007136]
[1772671160683,2.64712391,91.048,91.003,15.0887136]
[1772671160889,13.35725264,91.05,90.95,19.788]
[1772671160890,9.883,91.05,91.004,5.02750167]
[1772671161083,3.47425264,91.05,91.004,5.02750167]
[1772671162387,9.883,91.043,91.004,5.02750167]
[1772671168189,9.884,91.036,90.992,9.889]
[1772671168382,9.884,91.036,90.992,15.22051884]
[1772671168690,9.884,91.036,90.993,5.33151884]
[1772671169383,9.884,91.036,90.99,3.47425264]
[1772671169384,9.884,91.036,90.997,5.33151884]
[1772671169985,9.883,91.044,90.999,5.33151884]
[1772671170890,2.66035109,91.046,91.005,5.33151884]
[1772671171586,3.47425264,91.04,90.991,5.33151884]
[1772671172186,2.66035109,91.046,90.991,5.33151884]
[1772671172386,2.66035109,91.046,91.001,5.33151884]
[1772671172587,2.66035109,91.046,91.0,3.47425264]
[1772671172588,2.68610192,91.061,91.011,5.33151884]
[1772671172991,9.882,91.054,91.013,5.33151884]
[1772671173194,2.68610192,91.061,91.013,5.33151884]
[1772671173392,3.47425264,91.06,91.013,5.33151884]
[1772671173784,3.47425264,91.06,91.013,15.21851884]
[1772671173992,3.47425264,91.06,91.014,5.33151884]
[1772671175594,3.47425264,91.06,91.015,9.886]
[1772671175595,9.882,91.058,91.015,9.886]
[1772671176697,9.882,91.058,91.016,5.33151884]
[1772671177497,2.68610192,91.061,91.017,5.33151884]
[1772671177798,3.47425264,91.06,91.017,5.33151884]
[1772671178494,13.35625264,91.06,91.017,5.33151884]
[1772671178894,13.35825264,91.04,91.001,5.33151884]
[1772671179100,2.74912413,91.039,90.981,5.33151884]
[1772671179494,9.885,91.028,90.985,9.89]
[1772671179996,3.47425264,91.03,90.947,19.788]
[1772671179997,3.47425264,91.03,90.986,5.33151884]
[1772671180191,2.74912413,91.039,90.986,5.33151884]
[1772671180798,9.885,91.028,90.986,5.33151884]
[1772671180998,2.74912413,91.039,90.986,5.33151884]
[1772671182496,13.91942122,91.069,90.988,5.33151884]
[1772671182699,5.36453541,91.069,91.011,5.33151884]
[1772671182999,13.50356783,91.112,91.011,5.33151884]
[1772671183000,8.83878805,91.06,91.011,5.33151884]
[1772671183404,5.36453541,91.059,91.011,5.33151884]
[1772671184409,9.882,91.053,91.011,5.33151884]
[1772671185707,5.36453541,91.059,91.013,9.887]
[1772671185914,5.36453541,91.059,91.014,5.33151884]
[1772671186712,9.882,91.058,91.014,5.33151884]
[1772671187710,5.36453541,91.065,91.014,5.33151884]
[1772671187915,5.36453541,91.065,90.967,19.784]
[1772671187916,5.36453541,91.079,91.021,5.33151884]
[1772671188111,9.88,91.074,91.023,5.33151884]
[1772671188815,4.91396393,91.109,91.051,5.19774796]
[1772671189216,9.877,91.105,91.051,5.19774796]
[1772671189515,4.91396393,91.104,91.051,5.19774796]
[1772671190211,4.91396393,91.104,91.053,5.19774796]
[1772671191407,4.91396393,91.099,91.053,5.19774796]
[1772671192508,9.878,91.096,91.053,5.19774796]
[1772671193617,4.91396393,91.079,91.031,9.885]
[1772671194017,3.47425264,91.09,91.032,5.19774796]
[1772671194417,3.47425264,91.09,90.984,19.78]
[1772671194418,4.91396393,91.094,91.043,5.19774796]
[1772671194616,4.91396393,91.094,90.982,5.19774796]
[1772671194819,3.47425264,91.04,90.989,5.19774796]
[1772671195218,3.47425264,91.04,90.663,163.02705202]
[1772671195219,3.47425264,91.02,90.97,5.19774796]
[1772671195415,3.47425264,91.01,90.97,5.19774796]
[1772671196613,2.70055988,91.019,90.97,5.19774796]
[1772671197422,9.887,91.011,90.97,5.19774796]
[1772671199921,3.11816089,91.008,90.952,5.19774796]
[1772671201416,3.11911827,91.023,90.954,5.19774796]
[1772671202016,3.11911827,91.023,90.961,5.19774796]
[1772671202421,3.11911827,91.023,90.964,5.19774796]
[1772671203420,7.45145569,91.05,90.964,5.19774796]
[1772671203421,3.08263161,91.038,90.964,5.19774796]
[1772671204713,9.884,91.037,90.985,5.19774796]
[1772671206328,2.99235809,91.053,90.996,5.19774796]
[1772671208424,9.883,91.05,90.998,5.19774796]
[1772671211422,2.99235809,91.053,91.003,5.19774796]
[1772671212430,9.883,91.052,91.003,5.19774796]
[1772671214626,9.883,91.052,91.005,5.19774796]
[1772671214831,9.882,91.06,91.005,5.19774796]
[1772671215332,9.882,91.06,91.015,5.19774796]
[1772671217031,13.35507926,91.06,91.015,5.19774796]
[1772671220035,3.03248451,91.067,91.015,5.19774796]
[1772671220236,6.54377556,91.08,91.021,5.44583113]
[1772671220436,3.08606247,91.079,91.021,5.44583113]
[1772671221435,9.881,91.066,91.022,5.44583113]
[1772671222136,3.08997965,91.049,90.991,5.44583113]
[1772671222631,12.98578182,91.073,91.031,5.44583113]
[1772671222838,3.10578182,91.072,91.025,9.885]
[1772671223633,3.10578182,91.072,91.018,5.44583113]
[1772671223634,9.881,91.068,91.018,5.44583113]
[1772671224026,9.88,91.076,91.021,5.44583113]
[1772671224229,3.10771217,91.088,91.035,5.44583113]
[1772671224836,9.88,91.079,91.036,9.884]
[1772671225136,9.88,91.079,91.037,5.44583113]
[1772671226438,3.04740428,91.075,91.021,5.44583113]
[1772671226633,19.752,91.114,91.021,5.44583113]
[1772671226634,3.05359197,91.069,91.021,5.44583113]
[1772671228237,9.881,91.064,91.021,5.44583113]
[1772671229736,3.47307926,91.05,90.991,5.11063134]
[1772671229943,3.03657613,91.049,90.991,5.11063134]
[1772671230337,153.631,91.114,91.045,5.11063134]
[1772671230338,3.05257761,91.114,91.045,5.11063134]
[1772671230543,3.05257761,91.114,91.06,3.47307926]
[1772671231241,9.876,91.108,91.06,3.47307926]
[1772671231439,3.0542572,91.165,91.071,5.11063134]
[1772671231743,153.465,91.213,91.081,5.11063134]
[1772671231744,3.47307926,91.14,91.081,5.11063134]
[1772671231938,12.92884716,91.138,91.082,9.879]
[1772671232139,3.05584716,91.137,91.082,9.879]
[1772671232340,3.05584716,91.137,91.09,3.47307926]
[1772671233442,9.874,91.132,91.09,3.47307926]
[1772671234640,9.875,91.124,91.083,5.11063134]
[1772671234845,2.33522965,91.123,91.08,3.47307926]
[1772671235240,2.33522965,91.123,91.068,5.11063134]
[1772671235540,2.33524095,91.119,91.068,5.11063134]
[1772671235844,19.741,91.165,91.053,5.11063134]
[1772671235845,2.33679078,91.103,91.053,5.11063134]
[1772671237245,5.84330812,91.13,91.071,5.11063134]
[1772671237440,5.84330812,91.13,90.984,153.849]
[1772671237441,2.37024464,91.119,91.06,3.47307926]
[1772671237647,3.47307926,91.11,91.051,5.11063134]
[1772671238147,2.37024464,91.115,91.07,3.47307926]
[1772671238446,2.37024464,91.115,91.061,5.11063134]
[1772671238644,3.47307926,91.13,91.081,5.11063134]
[1772671238839,2.24921749,91.131,91.081,5.11063134]
[1772671239441,9.874,91.128,91.081,5.11063134]
[1772671240243,2.24921749,91.131,91.081,5.11063134]
[1772671240950,12.12321749,91.131,91.081,5.11063134]
[1772671242748,9.873,91.14,91.081,5.11063134]
[1772671242944,2.25212268,91.163,91.097,5.11063134]
[1772671243343,9.872,91.152,91.097,5.11063134]
[1772671243551,2.25212198,91.182,91.116,5.11063134]
[1772671243951,2.25293211,91.159,91.067,5.11063134]
[1772671244252,2.25293211,91.159,91.069,5.11063134]
[1772671244849,2.25293211,91.159,91.08,5.11063134]
[1772671246541,9.874,91.133,91.083,5.11063134]
[1772671248147,9.875,91.126,91.083,5.11063134]
[1772671251545,2.315131,91.118,91.064,5.23140647]
[1772671251749,2.31595948,91.159,91.064,5.23140647]
[1772671251948,9.874,91.132,91.082,5.23140647]
[1772671252153,2.31595948,91.145,91.082,5.23140647]
[1772671252550,9.874,91.133,91.083,15.11040647]
[1772671253154,9.874,91.133,91.084,5.23140647]
[1772671253751,9.874,91.133,91.086,5.23140647]
[1772671255556,2.31595948,91.145,91.098,9.877]
[1772671256357,9.873,91.144,91.098,9.877]
[1772671256659,9.873,91.144,91.099,5.23140647]
[1772671257758,2.31595948,91.145,91.102,5.23140647]
[1772671258856,9.872,91.152,91.102,5.23140647]
[1772671259457,9.872,91.152,91.104,9.877]
[1772671259857,9.872,91.147,91.104,9.877]
[1772671260760,9.873,91.139,91.095,9.878]
[1772671261763,2.35279961,91.133,91.087,15.11040647]
[1772671262058,2.35279961,91.159,91.088,5.23140647]
[1772671262464,2.35686587,91.149,91.091,5.23140647]
[1772671262762,9.872,91.145,91.091,5.23140647]
[1772671262963,2.35756566,91.144,91.091,5.23140647]
[1772671263462,2.35756566,91.144,91.101,5.23140647]
[1772671265064,2.36267547,91.129,91.072,5.23140647]
[1772671265260,2.36267547,91.119,91.072,5.23140647]
[1772671265459,2.36268109,91.195,91.111,5.23140647]
[1772671265769,2.36268109,91.195,91.15,3.46699622]
[1772671265970,12.22838553,91.21,91.151,5.23140647]
[1772671266158,2.36338553,91.209,91.151,5.23140647]
[1772671266361,2.36338553,91.209,91.16,8.69840269]
[1772671266964,2.32857865,91.227,91.171,5.23140647]
[1772671267163,9.864,91.226,91.171,5.23140647]
[1772671267462,2.32854724,91.225,91.171,5.23140647]
[1772671268768,1.92469625,91.223,91.171,5.23140647]
[1772671269161,1.92469625,91.219,91.171,5.23140647]
[1772671270367,11.78869625,91.219,91.171,5.23140647]
[1772671270568,1.92469625,91.219,91.171,5.23140647]
[1772671272061,1.92469625,91.219,91.16,3.46699622]
[1772671272267,1.96491377,91.199,91.14,3.46699622]
[1772671272469,1.96491377,91.199,91.15,3.46699622]
[1772671272661,1.96491377,91.199,91.15,8.69840269]
[1772671272866,1.96491377,91.199,91.15,5.23140647]
[1772671273571,1.96146877,91.189,91.135,5.23140647]
[1772671273768,1.96212441,91.179,91.12,3.46699622]
[1772671273967,1.96212441,91.179,91.121,5.23140647]
[1772671274869,2.12230203,91.169,91.11,3.46699622]
[1772671275173,3.46699622,91.16,91.113,5.23140647]
[1772671275371,2.12230203,91.169,91.113,5.23140647]
[1772671275765,9.87,91.168,91.114,5.23140647]
[1772671276464,12.00009635,91.163,91.114,5.23140647]
[1772671276662,7.42665032,91.18,91.114,5.23140647]
[1772671276663,2.12973005,91.162,91.114,5.23140647]
[1772671277570,9.869,91.172,91.115,5.23140647]
[1772671279773,2.14605891,91.167,91.115,5.23140647]
[1772671280372,2.14605891,91.152,91.099,4.99020913]
[1772671280878,2.14605891,91.152,91.109,9.876]
[1772671281073,2.15829752,91.167,91.11,4.99020913]
[1772671281479,9.87,91.165,91.11,4.99020913]
[1772671282277,2.15829752,91.167,91.119,4.99020913]
[1772671283681,2.15829752,91.167,91.12,9.875]
[1772671283980,2.15829752,91.167,91.121,4.99020913]
[1772671284481,12.02829752,91.167,91.121,4.99020913]
[1772671285785,12.02829752,91.167,91.123,9.875]
[1772671285990,9.869,91.176,91.124,4.99020913]
[1772671286278,9.869,91.176,91.127,4.99020913]
[1772671286479,2.17853488,91.183,91.127,4.99020913]
[1772671287476,9.869,91.181,91.135,9.873]
[1772671287886,9.869,91.181,91.127,4.99020913]
[1772671288379,9.869,91.176,91.129,9.874]
[1772671288680,2.17295333,91.19,91.101,5.00341772]
[1772671288979,19.726,91.237,91.111,5.00341772]
[1772671288980,2.17333113,91.205,91.111,5.00341772]
[1772671289180,9.866,91.204,91.151,5.00341772]
[1772671289580,2.17332683,91.219,91.151,5.00341772]
[1772671290383,9.865,91.213,91.154,9.871]
[1772671290578,9.865,91.213,91.155,5.00341772]
[1772671291684,9.865,91.213,91.157,5.00341772]
[1772671293191,9.865,91.213,91.16,5.00341772]
[1772671295188,9.865,91.213,91.163,5.00341772]
[1772671295891,2.21602197,91.238,91.168,5.00341772]
[1772671296284,9.862,91.24,91.186,5.00341772]
[1772671296788,9.861,91.249,91.19,5.00341772]
[1772671296992,2.17193485,91.264,91.19,5.00341772]
[1772671298288,153.266,91.331,91.143,153.58]
[1772671298289,2.17870447,91.299,91.218,5.00341772]
[1772671299188,9.856,91.295,91.233,5.00341772]
[1772671299388,2.17870447,91.299,91.233,5.00341772]
[1772671299994,9.857,91.287,91.233,5.00341772]
[1772671300192,2.17870447,91.299,91.233,5.00341772]
[1772671300592,2.19784798,91.298,91.237,5.00341772]
[1772671301088,2.19815325,91.293,91.237,5.00341772]
[1772671301292,2.19815325,91.293,91.221,5.00341772]
[1772671302392,0.06933183,91.266,91.221,5.00341772]
[1772671303293,0.06933183,91.266,91.231,5.00341772]
[1772671303897,2.13897511,91.295,91.231,5.00341772]
[1772671304096,9.857,91.289,91.234,5.00341772]
[1772671304699,2.13897511,91.295,91.237,5.00341772]
[1772671305301,9.855,91.303,91.248,5.00341772]
[1772671305500,9.40309056,91.31,91.248,5.00341772]
[1772671305501,1.97644024,91.31,91.248,5.00341772]
[1772671306395,1.97644024,91.31,91.264,5.00341772]
[1772671306794,1.84314379,91.328,91.264,5.00341772]
[1772671306995,1.84314379,91.366,91.296,5.00341772]
[1772671307401,1.8439233,91.331,91.279,5.00341772]
[1772671307605,1.8439233,91.331,91.241,5.00341772]
[1772671308106,1.8439233,91.331,91.27,5.00341772]
[1772671308304,7.42665032,91.35,91.27,5.00341772]
[1772671308305,1.75994041,91.348,91.27,5.00341772]
[1772671308707,9.852,91.339,91.277,5.37664964]
[1772671309004,1.69124775,91.338,91.277,5.37664964]
[1772671310406,1.69124775,91.338,91.279,5.37664964]
[1772671311198,1.69124775,91.338,91.26,5.37664964]
[1772671311802,1.59409049,91.354,91.282,5.37664964]
[1772671312097,1.59409049,91.339,91.261,5.37664964]
[1772671313205,1.59409049,91.339,91.273,5.37664964]
[1772671313904,9.854,91.314,91.273,5.37664964]
[1772671314106,1.59409049,91.339,91.273,5.37664964]
[1772671314805,9.854,91.315,91.273,5.37664964]
[1772671316605,9.855,91.306,91.248,5.37664964]
[1772671317503,9.854,91.315,91.26,5.37664964]
[1772671318306,1.26217694,91.314,91.26,5.37664964]
[1772671319508,0.06901619,91.296,91.26,5.37664964]
[1772671320102,9.856,91.295,91.243,5.37664964]
[1772671320911,1.09279997,91.298,91.227,5.37664964]
[1772671321306,9.859,91.274,91.227,5.37664964]
[1772671321707,9.86,91.265,91.227,5.37664964]
[1772671321902,1.06678728,91.272,91.212,5.37664964]
[1772671323212,1.11213073,91.288,91.225,5.37664964]
[1772671325211,9.859,91.274,91.227,5.37664964]
[1772671325411,1.11213073,91.288,91.227,5.37664964]
[1772671325808,1.11213073,91.288,91.2,7.40330194]
[1772671325809,1.11213073,91.288,91.21,5.37664964]
[1772671326411,9.861,91.251,91.21,5.37664964]
[1772671326710,7.40330194,91.28,91.195,5.37664964]
[1772671326916,0.99719075,91.291,91.227,15.23964964]
[1772671327117,0.99719075,91.291,91.227,5.37664964]
[1772671327617,0.99841773,91.289,91.201,5.37664964]
[1772671328115,9.86,91.257,91.211,15.24164964]
[1772671328417,0.97277822,91.27,91.211,5.37664964]
[1772671328814,9.86,91.257,91.211,5.37664964]
[1772671329216,0.97277822,91.27,91.211,5.37664964]
[1772671330018,9.861,91.249,91.211,5.37664964]
[1772671330418,0.97277822,91.27,91.211,5.37664964]
[1772671331519,0.97277822,91.27,91.18,7.40330194]
[1772671331520,0.97277822,91.27,91.195,5.37664964]
[1772671331723,0.88581882,91.269,91.195,5.37664964]
[1772671332427,0.8454378,91.252,91.195,5.37664964]
[1772671333425,9.862,91.238,91.195,5.37664964]
[1772671335630,9.864,91.219,91.178,5.37664964]
[1772671335928,0.75395072,91.223,91.162,5.37664964]
[1772671337222,0.7408108,91.238,91.164,5.37664964]
[1772671337532,0.74196048,91.269,91.164,5.37664964]
[1772671337733,7.40330194,91.27,91.16,7.40330194]
[1772671337734,9.862,91.244,91.192,5.37664964]
[1772671338226,9.863,91.237,91.192,5.37664964]
[1772671338831,0.06149273,91.236,91.176,4.68518546]
[1772671340528,9.863,91.233,91.178,4.64581179]